bitfinex/quotes_ETHUSD_20220220
["timestamp","ask_amount","ask_price","bid_price","bid_amount"]
[1645315202146,0.90409,2767.8,2767.5,1.18949237]
[1645315202598,0.90409,2767.8,2767.6,0.21862814]
[1645315202795,0.90409,2767.8,2767.5,1.18949237]
[1645315202994,0.90409,2767.8,2766.7,3.0113]
[1645315203295,0.90729884,2767.8,2766.8,3.5]
[1645315203695,0.91329884,2767.8,2766.8,3.5]
[1645315204096,0.91329884,2767.8,2767.3,1.33112505]
[1645315204296,0.91009,2767.8,2767.3,1.11249691]
[1645315204498,0.0032091,2767.4,2767.3,1.11249691]
[1645315205398,0.91009,2767.8,2767.3,1.11249691]
[1645315205599,0.00320907,2767.5,2767.3,1.11249691]
[1645315206551,0.91009,2767.8,2767.3,1.11249691]
[1645315206950,0.00320903,2767.5,2767.3,1.11249691]
[1645315207250,0.00320903,2767.5,2767.4,0.21862814]
[1645315207454,0.00320903,2767.5,2767.4,0.19986702]
[1645315207650,0.00320903,2767.5,2767.3,1.11249691]
[1645315207851,0.91009,2767.8,2767.3,1.11249691]
[1645315208050,0.003209,2767.6,2767.3,1.11249691]
[1645315208649,0.003209,2767.6,2767.4,0.19986702]
[1645315208850,0.763299,2767.8,2767.3,1.11249691]
[1645315209251,0.00320897,2767.6,2767.4,0.87609472]
[1645315210297,0.763299,2767.8,2767.6,0.19986702]
[1645315211700,0.76650784,2767.8,2767.6,0.19986702]
[1645315212101,0.76650784,2767.8,2767.7,0.19986702]
[1645315212304,0.76650784,2767.8,2767.4,0.87609472]
[1645315212505,0.763299,2767.8,2767.4,0.87609472]
[1645315212904,1.09354245,2767.7,2767.4,0.87609472]
[1645315213103,0.00320891,2767.7,2767.4,0.87609472]
[1645315213706,0.00320891,2767.7,2767.6,0.19986702]
[1645315213944,0.763299,2767.8,2767.6,0.19986702]
[1645315214146,0.00320888,2767.7,2767.4,0.87609472]
[1645315214347,0.00320888,2767.7,2767.0,0.9512473]
[1645315214544,0.00320888,2767.7,2767.6,0.87609472]
[1645315214945,0.76923185,2767.8,2767.6,0.87609472]
[1645315215146,1.763299,2767.8,2767.7,0.19986702]
[1645315215347,1.76650788,2767.8,2767.7,0.19986702]
[1645315215945,2.06650788,2767.8,2767.7,0.19986702]
[1645315216144,1.263299,2767.8,2767.7,0.19986702]
[1645315216347,2.785299,2767.8,2767.7,0.19986702]
[1645315216545,1.87141516,2767.8,2767.7,0.19986702]
[1645315216747,2.87141516,2767.8,2767.7,0.19986702]
[1645315217345,2.5,2767.7,2767.6,0.87609472]
[1645315217600,6.7350771,2767.7,2767.6,0.87609472]
[1645315218199,7.7298023,2767.7,2767.6,0.87609472]
[1645315219005,7.7298023,2767.7,2767.1,0.02401572]
[1645315219006,8.72036846,2767.7,2767.1,0.02401572]
[1645315219203,0.90451,2767.5,2767.1,0.02401572]
[1645315219401,1.4264805,2767.4,2767.1,0.02401572]
[1645315219602,1.80897,2767.3,2767.1,0.02401572]
[1645315219800,2.63097,2767.3,2767.1,0.02401572]
[1645315220101,1.07153182,2767.2,2767.1,0.02401572]
[1645315220300,2.07153182,2767.2,2767.1,0.02401572]
[1645315221947,2.97600182,2767.2,2767.1,0.02401572]
[1645315222147,2.97600182,2767.2,2766.8,0.02401573]
[1645315222346,1.42659,2767.1,2766.8,0.02401573]
[1645315222547,0.90456,2767.0,2766.8,0.02401573]
[1645315222749,0.522,2766.9,2766.8,0.02401573]
[1645315223948,1.42657,2766.9,2766.8,0.02401573]
[1645315224149,1.72657,2766.9,2766.8,0.02401573]
[1645315224351,2.72657,2766.9,2766.8,0.02401573]
[1645315225293,2.42657,2766.9,2766.8,0.02401573]
[1645315226596,3.02657,2766.9,2766.8,0.02401573]
[1645315230950,3.11268616,2766.9,2766.8,0.02401573]
[1645315231747,0.90462,2766.7,2766.3,0.01199988]
[1645315231950,0.90462,2766.7,2766.2,1.59779068]
[1645315231951,1.8094,2766.5,2766.2,1.59779068]
[1645315232148,0.522,2766.4,2766.3,0.01199988]
[1645315232593,0.822,2766.4,2766.3,0.01199988]
[1645315232798,1.822,2766.4,2766.3,0.01199988]
[1645315232993,1.822,2766.4,2766.2,1.59779068]
[1645315233196,1.8096,2766.3,2766.2,1.59779068]
[1645315233396,8.3316,2766.3,2766.2,1.59779068]
[1645315233599,9.32861225,2766.3,2766.2,1.59779068]
[1645315233997,4.32861225,2766.3,2766.2,1.59779068]
[1645315234997,3.0,2766.2,2766.1,0.00300208]
[1645315235198,8.83182,2766.2,2764.3,2.45426702]
[1645315235399,0.9049,2765.7,2764.4,1.53661086]
[1645315235599,0.9049,2765.7,2764.4,2.72421086]
[1645315235797,0.9049,2765.7,2764.5,1.53661086]
[1645315235798,2.2049,2765.7,2764.5,1.53661086]
[1645315236445,1.11457915,2765.6,2764.4,1.1876]
[1645315236847,0.90489,2765.4,2764.4,1.1876]
[1645315237051,4.61457915,2765.6,2764.4,1.1876]
[1645315237052,3.8,2765.5,2764.4,1.1876]
[1645315237245,4.8,2765.5,2764.4,1.1876]
[1645315237446,4.8,2765.5,2764.5,1.08751043]
[1645315237846,0.522,2765.4,2764.5,1.08751043]
[1645315238045,0.90508,2765.1,2764.9,0.00175508]
[1645315238449,1.50508,2765.1,2764.9,0.00175508]
[1645315238650,0.522,2765.0,2764.9,0.00175508]
[1645315238853,1.522,2765.0,2764.9,0.00175508]
[1645315239046,1.522,2765.0,2764.1,0.5]
[1645315239249,0.90517,2764.8,2764.4,0.01284556]
[1645315239445,0.522,2764.7,2764.4,0.01284556]
[1645315240094,0.522,2764.7,2764.1,0.46284556]
[1645315240095,2.5,2764.6,2764.1,0.46284556]
[1645315240397,3.5,2764.6,2764.1,0.46284556]
[1645315240597,0.90517,2764.5,2764.1,0.46284556]
[1645315241297,2.20517,2764.5,2763.2,5.16080288]
[1645315241500,0.522,2764.4,2763.2,2.8064]
[1645315241697,0.90528,2764.2,2763.2,2.8064]
[1645315241898,0.90528,2764.2,2764.1,0.08]
[1645315244749,0.90528,2764.2,2764.0,0.00321141]
[1645315244750,1.20528,2764.2,2764.0,0.00321141]
[1645315244953,3.522,2764.1,2763.1,0.14675911]
[1645315245150,0.90546,2763.9,2762.8,5.8159]
[1645315245351,0.90546,2763.9,2763.5,0.0128477]
[1645315245748,0.90546,2763.9,2763.7,1.05015829]
[1645315246148,0.90546,2763.9,2763.8,0.5]
[1645315246553,0.90528,2764.2,2763.8,0.5]
[1645315246755,1.0,2764.6,2763.9,1.63974318]
[1645315246951,0.522,2764.7,2763.9,1.63974318]
[1645315247595,0.522,2764.7,2764.2,0.9794579]
[1645315248001,5.90519,2764.5,2763.9,1.63974318]
[1645315248197,0.522,2764.4,2763.9,1.63974318]
[1645315248999,0.00321109,2764.3,2764.1,1.11864853]
[1645315249197,0.90526,2764.2,2764.1,1.11864853]
[1645315249401,0.90526,2764.2,2763.9,1.63974318]
[1645315250402,0.90847116,2764.2,2764.0,0.94391275]
[1645315250802,0.00321116,2764.2,2764.0,0.94391275]
[1645315251000,0.90518,2764.5,2764.0,0.94391275]
[1645315251200,0.90518,2764.5,2763.9,1.63974318]
[1645315251452,0.00321112,2764.2,2763.9,1.63974318]
[1645315252249,0.90518,2764.5,2763.9,1.63974318]
[1645315252450,0.90518,2764.5,2764.3,1.19077101]
[1645315252650,0.90518,2764.5,2763.9,1.63974318]
[1645315253849,1.522,2764.7,2764.0,0.94459002]
[1645315253850,0.00321106,2764.3,2764.0,0.94459002]
[1645315254052,0.90845106,2764.3,2764.0,0.94459002]
[1645315254254,0.85537806,2764.3,2764.0,0.94459002]
[1645315254452,0.85537806,2764.3,2763.9,1.63974318]
[1645315255597,0.85537806,2764.3,2764.2,1.14650967]
[1645315255998,0.85537806,2764.3,2763.9,1.63974318]
[1645315257100,0.85537806,2764.3,2764.0,0.9347604]
[1645315259749,1.45537806,2764.3,2763.9,1.48974318]
[1645315259949,0.85537806,2764.3,2763.9,1.48974318]
[1645315260247,1.45537806,2764.3,2763.9,1.48974318]
[1645315262347,2.51276794,2764.3,2763.9,1.48974318]
[1645315262806,1.0,2764.2,2763.9,1.48974318]
[1645315262998,1.3,2764.2,2763.9,1.48974318]
[1645315263600,1.0,2764.2,2763.9,1.48974318]
[1645315263800,0.85537806,2764.3,2763.9,1.48974318]
[1645315264202,1.0,2764.4,2763.9,1.48974318]
[1645315264400,0.90512,2764.6,2763.9,1.48974318]
[1645315264601,0.00321089,2764.4,2764.2,0.88497027]
[1645315265401,0.90512,2764.6,2763.9,1.48974318]
[1645315265800,0.00299735,2764.4,2763.9,1.49774318]
[1645315266648,1.03395,2764.8,2764.6,0.73160508]
[1645315266850,0.63395,2764.8,2764.6,0.73160508]
[1645315267150,0.03395,2764.8,2764.6,0.73160508]
[1645315267355,8.46842247,2765.8,2764.6,0.73160508]
[1645315267356,0.03395,2764.9,2764.6,0.73160508]
[1645315267549,8.34838247,2765.8,2764.6,0.73160508]
[1645315267550,0.03395,2765.5,2764.6,0.73160508]
[1645315267751,8.34838247,2765.8,2764.6,0.73160508]
[1645315267752,0.03395,2765.7,2764.6,0.73160508]
[1645315268151,0.03395,2765.7,2765.1,0.92059553]
[1645315269148,1.03395,2765.7,2765.1,0.92059553]
[1645315269748,1.03395,2765.7,2764.7,4.6614]
[1645315269948,0.90482,2765.6,2764.7,1.1614]
[1645315270201,0.03395,2765.5,2764.7,4.6614]
[1645315270404,0.03395,2765.5,2764.7,1.1614]
[1645315270599,0.00321047,2765.3,2764.7,4.6614]
[1645315270903,0.00321047,2765.3,2765.0,0.91265233]
[1645315271501,0.90488,2765.4,2764.7,1.1614]
[1645315271700,0.00321047,2765.3,2764.6,0.73160508]
[1645315272499,0.00321047,2765.3,2764.7,3.5]
[1645315272698,0.90488,2765.4,2764.6,0.73160508]
[1645315272699,0.90488,2765.4,2765.1,1.04476021]
[1645315272899,0.03395,2765.6,2765.1,1.04476021]
[1645315273106,3.3864865,2765.7,2765.1,1.04476021]
[1645315273302,0.5767565,2765.7,2765.1,1.04476021]
[1645315274148,0.00321031,2765.5,2765.1,1.04476021]
[1645315275151,0.5428065,2765.7,2765.1,1.04476021]
[1645315275349,0.00298717,2765.4,2765.1,1.04476021]
[1645315276150,0.00298717,2765.4,2765.2,3.5]
[1645315276350,0.5428065,2765.7,2765.2,3.5]
[1645315276550,4.84838247,2765.8,2765.2,3.5]
[1645315276551,0.0029872,2765.4,2765.2,3.5]
[1645315276755,4.84838247,2765.8,2765.3,8.0]
[1645315276951,4.84838247,2765.8,2765.4,5.03663332]
[1645315277151,4.84838247,2765.8,2765.4,3.5]
[1645315277599,4.84838247,2765.8,2765.6,1.03141287]
[1645315278404,4.84838247,2765.8,2765.6,1.93566287]
[1645315278805,0.03395,2766.7,2765.6,5.43566287]
[1645315279003,0.00148168,2765.8,2765.7,8.5]
[1645315279204,0.00148168,2765.8,2765.7,19.54]
[1645315279404,0.03396,2767.1,2765.8,3.0]
[1645315279604,0.03398,2766.9,2766.4,0.98935405]
[1645315279804,0.03398,2767.0,2766.4,0.98935405]
[1645315280805,0.03398,2767.0,2766.0,1.1789]
[1645315282052,0.03398,2767.0,2766.4,0.97431251]
[1645315283756,0.0032095,2766.8,2766.4,0.97431251]
[1645315284757,0.03395,2767.2,2766.4,0.47431251]
[1645315284956,0.00320956,2766.7,2766.4,0.47431251]
[1645315286002,1.03393,2767.5,2766.9,0.99516193]
[1645315286899,0.03393,2767.5,2766.2,5.5514]
[1645315287100,4.53393,2767.5,2766.2,5.5514]
[1645315287399,0.93713919,2767.5,2766.4,3.0]
[1645315287800,1.29943662,2767.6,2766.4,3.0]
[1645315288000,1.29943662,2767.6,2766.7,1.13666794]
[1645315288601,0.30593285,2767.6,2766.7,1.13666794]
[1645315288858,0.00593285,2767.6,2766.7,1.13666794]
[1645315289650,1.13295837,2767.6,2766.7,1.13666794]
[1645315290250,0.00593285,2767.6,2766.7,1.13666794]
[1645315290449,0.01193285,2767.8,2766.7,1.13666794]
[1645315291150,0.91229962,2767.7,2766.7,1.13666794]
[1645315291459,3.50593285,2767.6,2766.5,4.1999]
[1645315291654,4.62793285,2767.6,2766.5,4.1999]
[1645315291850,1.0,2767.5,2766.5,4.1999]
[1645315292050,3.5,2767.4,2766.5,4.1999]
[1645315292252,4.10320899,2767.4,2766.5,4.1999]
[1645315292597,1.0,2767.3,2766.5,4.1999]
[1645315292997,0.95436476,2766.9,2766.5,4.1999]
[1645315293300,3.5,2766.8,2766.4,0.008]
[1645315293601,1.25436476,2766.9,2766.4,0.008]
[1645315293798,1.0,2766.7,2766.4,0.008]
[1645315294005,0.90445,2766.7,2766.4,0.008]
[1645315294399,1.90445,2766.7,2766.4,0.008]
[1645315294598,1.90445,2766.7,2766.5,0.008]
[1645315294599,0.90445,2766.7,2766.5,0.008]
[1645315294798,2.50445,2766.7,2766.5,0.008]
[1645315294998,1.50445,2766.7,2766.5,0.008]
[1645315295198,2.50445,2766.7,2766.5,0.008]
[1645315298449,2.45445,2766.7,2766.5,0.008]
[1645315301904,4.2636035,2766.7,2766.5,0.008]
[1645315302999,4.34971966,2766.7,2766.5,0.008]
[1645315303200,0.522,2766.6,2766.5,0.008]
[1645315310903,0.522,2766.6,2766.5,0.00880482]
[1645315311951,0.522,2766.6,2766.5,0.00960964]
[1645315312953,0.522,2766.6,2766.5,0.01041446]
[1645315313352,1.06890859,2766.6,2766.5,0.01041446]
[1645315313854,2.06890859,2766.6,2766.5,0.01041446]
[1645315314153,2.06890859,2766.6,2766.5,0.01121928]
[1645315315102,2.06890859,2766.6,2766.5,0.0120241]
[1645315315303,1.06890859,2766.6,2766.5,0.0120241]
[1645315316203,1.06890859,2766.6,2766.5,0.01282892]
[1645315316505,1.06890859,2766.6,2766.5,0.19352892]
[1645315317205,1.06890859,2766.6,2766.5,0.19433374]
[1645315318307,1.06890859,2766.6,2766.5,0.19513856]
[1645315319158,1.06890859,2766.6,2766.5,0.19594338]
[1645315319357,1.15502475,2766.6,2766.5,0.19594338]
[1645315319959,1.15502475,2766.6,2766.5,0.01524338]
[1645315320157,1.15502475,2766.6,2766.5,0.0160482]
[1645315320356,1.06890859,2766.6,2766.5,0.0160482]
[1645315320557,1.06890859,2766.6,2766.5,0.0146471]
[1645315320955,0.522,2766.6,2766.5,0.0146471]
[1645315321157,0.522,2766.6,2766.5,0.01545192]
[1645315322355,0.522,2766.6,2766.5,0.01625674]
[1645315322605,0.472,2766.6,2766.5,0.01625674]
[1645315323304,0.472,2766.6,2766.5,0.01706156]
[1645315323504,0.90445,2766.7,2766.5,0.01706156]
[1645315323705,0.5434952,2767.4,2766.5,0.01706156]
[1645315323910,0.5434952,2767.4,2766.6,1.53603915]
[1645315324103,0.5434952,2767.4,2766.7,3.5]
[1645315324305,0.54028409,2767.4,2766.7,3.5]
[1645315324503,0.00321135,2767.4,2767.3,0.84422603]
[1645315324902,0.00321135,2767.4,2766.6,0.00080482]
[1645315325102,0.00321135,2767.4,2766.6,1.53674393]
[1645315325306,0.00321135,2767.4,2767.3,0.00080482]
[1645315325503,1.80843,2767.6,2767.3,0.00080482]
[1645315325809,0.00321135,2767.4,2767.3,0.00080482]
[1645315326451,0.00321135,2767.4,2767.3,0.00160964]
[1645315326755,0.90418,2767.4,2767.3,0.00160964]
[1645315327351,0.90418,2767.4,2767.3,0.00241446]
[1645315328154,1.50418,2767.4,2767.3,0.00241446]
[1645315328454,1.50418,2767.4,2767.3,0.00321928]
[1645315328455,3.02618,2767.4,2767.3,0.00321928]
[1645315328655,6.16806228,2767.4,2767.3,0.00321928]
[1645315328953,6.70847096,2767.4,2767.3,0.00321928]
[1645315329155,1.00373094,2766.7,2766.6,0.00080482]
[1645315329453,1.90825094,2766.7,2766.6,0.00080482]
[1645315329853,0.90452,2766.7,2766.6,0.00080482]
[1645315330610,0.90452,2766.7,2766.5,0.01384228]
[1645315330805,0.90452,2766.7,2766.5,0.00724338]
[1645315331408,1.20452,2766.7,2766.5,0.00724338]
[1645315331607,1.50452,2766.7,2766.5,0.00724338]
[1645315332008,0.90452,2766.7,2766.5,0.00724338]
[1645315333212,1.50452,2766.7,2766.5,0.00724338]
[1645315334063,0.90452,2766.7,2766.5,0.00724338]
[1645315335064,1.90452,2766.7,2766.5,0.00724338]
[1645315336068,2.50452,2766.7,2766.5,0.00724338]
[1645315336965,1.90452,2766.7,2766.5,0.00724338]
[1645315338901,1.50452,2766.7,2766.5,0.00724338]
[1645315339103,2.50452,2766.7,2766.5,0.00724338]
[1645315339301,1.90452,2766.7,2766.5,0.00724338]
[1645315339701,1.90371518,2766.7,2766.5,0.00724338]
[1645315340301,2.50371518,2766.7,2766.5,0.00724338]
[1645315341363,1.90371518,2766.7,2766.5,0.00724338]
[1645315350055,2.50371518,2766.7,2766.5,0.00724338]
[1645315351956,1.90371518,2766.7,2766.5,0.00724338]
[1645315356757,1.85371518,2766.7,2766.5,0.00724338]
[1645315357953,2.81264089,2766.7,2766.5,0.00724338]
[1645315359756,2.81264089,2766.7,2766.5,0.00643856]
[1645315360212,3.11264089,2766.7,2766.5,0.00643856]
[1645315360809,3.11183607,2766.7,2766.5,0.00643856]
[1645315365257,1.85371518,2766.7,2766.5,0.00643856]
[1645315366057,0.85371518,2766.7,2766.5,0.00643856]
[1645315369113,0.90434,2767.0,2766.5,0.00643856]
[1645315369314,1.0,2767.3,2766.6,1.53601724]
[1645315369514,1.0,2767.3,2766.7,3.5]
[1645315369916,0.00595346,2767.6,2766.5,0.00643856]
[1645315370120,0.85480433,2767.4,2766.7,0.97624527]
[1645315370315,0.85760718,2767.4,2766.7,4.47624527]
[1645315370514,0.85760718,2767.4,2766.8,1.53598063]
[1645315371114,0.85480433,2767.4,2766.8,1.53598063]
[1645315371370,0.00280239,2767.4,2766.7,0.97624527]
[1645315371567,0.00280239,2767.4,2766.8,3.5]
[1645315372370,2.80854,2767.5,2766.8,3.5]
[1645315372573,1.80854,2767.5,2766.8,3.5]
[1645315372769,0.00280239,2767.4,2766.8,3.5]
[1645315372970,0.90422,2767.3,2766.7,0.97624527]
[1645315373369,1.80876,2767.1,2766.5,1.16873856]
[1645315373569,1.80876,2767.1,2766.6,1.53605154]
[1645315373771,1.522,2767.4,2766.6,1.53605154]
[1645315373772,0.822,2767.4,2766.6,1.53605154]
[1645315373969,1.0,2767.3,2766.6,1.53605154]
[1645315374168,0.52480135,2767.4,2766.6,1.53605154]
[1645315374369,0.82480135,2767.4,2766.6,1.53605154]
[1645315374769,1.7263761,2767.4,2766.6,1.53605154]
[1645315374973,0.90436,2767.0,2766.6,1.53605154]
[1645315375909,1.0,2767.1,2766.7,3.5]
[1645315376108,0.90425,2767.3,2766.7,3.5]
[1645315376409,0.90425,2767.3,2766.5,0.00643856]
[1645315376608,0.90425,2767.3,2766.6,1.53597902]
[1645315376807,0.90425,2767.3,2766.7,3.5]
[1645315377208,0.90425,2767.3,2766.8,1.5359857]
[1645315377407,0.90425,2767.3,2766.6,1.17529836]
[1645315377612,0.90425,2767.3,2766.7,1.53599555]
[1645315378008,0.90425,2767.3,2766.8,3.4661847]
[1645315378207,0.90425,2767.3,2766.6,1.17529836]
[1645315378408,0.90425,2767.3,2766.7,1.53594955]
[1645315381164,0.90425,2767.3,2767.1,0.84907815]
[1645315381768,0.90344518,2767.3,2767.1,0.84907815]
[1645315381965,1.81443346,2767.6,2767.1,0.84907815]
[1645315382466,0.00281603,2767.4,2767.1,0.84907815]
[1645315383307,1.81443346,2767.6,2767.1,0.84907815]
[1645315383507,1.81443346,2767.6,2766.5,0.00563374]
[1645315383508,0.00281605,2767.4,2766.5,0.00563374]
[1645315383709,0.00281605,2767.4,2766.6,1.53587533]
[1645315383909,0.90701605,2767.4,2766.6,1.53587533]
[1645315384319,0.00281605,2767.4,2766.7,3.46543481]
[1645315384518,1.11985346,2768.1,2766.9,3.0]
[1645315384715,1.11985346,2768.1,2766.9,4.2399]
[1645315384914,0.00281518,2767.4,2766.9,4.2399]
[1645315385115,0.00281518,2767.4,2766.9,9.2399]
[1645315385313,0.00281518,2767.4,2767.0,0.83802904]
[1645315385717,4.61985346,2768.1,2767.0,0.83802904]
[1645315385917,0.002814,2767.4,2767.0,0.83802904]
[1645315386862,0.99034616,2767.3,2766.5,0.00563374]
[1645315387057,1.51234616,2767.3,2766.5,0.00563374]
[1645315387258,0.3,2767.2,2766.5,0.00563374]
[1645315387858,0.90451,2767.0,2766.5,0.00563374]
[1645315388161,0.89204033,2766.9,2766.5,0.00563374]
[1645315392012,1.90451,2767.0,2766.5,0.00563374]
[1645315400641,0.90451,2767.0,2766.5,0.00563374]
[1645315401967,0.90451,2767.0,2766.5,0.00482892]
[1645315402966,0.90370518,2767.0,2766.5,0.00482892]
[1645315404564,0.90370518,2767.0,2766.6,1.53599278]
[1645315407209,0.90370518,2767.0,2766.6,2.43512077]
[1645315407410,0.90370518,2767.0,2766.7,1.53599278]
[1645315407610,0.90370518,2767.0,2766.7,5.03599278]
[1645315407811,1.0,2767.3,2766.7,3.5]
[1645315407812,0.90426,2767.2,2766.7,3.5]
[1645315408010,0.90426,2767.2,2766.6,0.89912799]
[1645315408211,0.90426,2767.2,2766.7,5.03594006]
[1645315408410,0.90426,2767.2,2766.8,1.53594006]
[1645315408611,0.90426,2767.2,2766.7,1.53594006]
[1645315408857,0.90426,2767.2,2766.8,1.53593668]
[1645315409459,0.90426,2767.2,2766.6,0.89912799]
[1645315409759,0.90426,2767.2,2766.7,1.5359598]
[1645315410160,0.90426,2767.2,2766.7,5.0359598]
[1645315410361,0.90426,2767.2,2766.8,1.5359598]
[1645315410562,0.90426,2767.2,2766.6,0.89912799]
[1645315410761,0.90426,2767.2,2766.7,1.53593208]
[1645315412362,0.85426,2767.2,2766.7,1.53593208]
[1645315412607,0.85426,2767.2,2766.8,1.53593208]
[1645315412808,0.85426,2767.2,2766.5,0.00482892]
[1645315413008,0.85426,2767.2,2766.6,1.53593176]
[1645315413609,1.45426,2767.2,2766.6,1.53593176]
[1645315414812,1.19057486,2767.0,2766.6,1.53593176]
[1645315415016,1.19057486,2767.0,2766.5,0.00482892]
[1645315415017,3.5,2766.9,2766.5,0.00482892]
[1645315415221,0.90457,2766.8,2766.5,0.00482892]
[1645315415416,0.522,2766.7,2766.5,0.00482892]
[1645315415817,3.58611616,2766.6,2765.7,0.01125633]
[1645315416019,0.9047765,2766.3,2765.1,0.68269011]
[1645315416216,0.9047765,2766.3,2765.1,1.53950763]
[1645315416217,0.90498,2765.9,2765.1,1.53950763]
[1645315416469,0.522,2765.8,2765.1,1.53950763]
[1645315416975,1.15390697,2765.5,2765.1,1.53669297]
[1645315417169,0.522,2765.4,2765.1,1.53669297]
[1645315417366,0.90498,2765.3,2765.1,1.53669297]
[1645315417568,0.522,2765.2,2765.1,1.53669297]
[1645315418267,0.522,2765.2,2764.8,1.54077838]
[1645315418466,0.522,2765.2,2764.9,1.53669297]
[1645315418666,0.522,2765.2,2765.0,1.53669297]
[1645315418872,0.522,2765.2,2764.8,1.53669297]
[1645315419068,0.522,2765.2,2764.9,1.53669297]
[1645315419268,0.522,2765.2,2764.8,0.00408541]
[1645315419269,0.90498,2765.3,2765.0,1.53669297]
[1645315419473,0.90498,2765.3,2765.1,1.53669297]
[1645315419666,0.522,2765.6,2764.8,0.00408541]
[1645315419667,1.42681,2765.6,2764.8,0.00408541]
[1645315419868,1.42681,2765.6,2764.8,1.54081196]
[1645315420718,1.42681,2765.6,2765.1,0.00302472]
[1645315421618,1.42681,2765.6,2765.0,0.00408541]
[1645315421820,1.42681,2765.6,2765.2,0.00307565]
[1645315422818,1.42681,2765.6,2764.8,0.00408541]
[1645315423019,1.81022,2765.4,2765.3,0.00307562]
[1645315423219,7.94244,2765.4,2765.3,0.00307562]
[1645315423418,9.24244,2765.4,2765.3,0.00307562]
[1645315424059,0.90509,2765.2,2764.5,0.00408541]
[1645315424258,0.522,2765.1,2764.8,0.01230443]
[1645315424671,1.522,2765.1,2764.8,0.01230443]
[1645315425158,0.522,2765.1,2764.5,0.00408541]
[1645315425358,1.522,2765.1,2764.5,0.00408541]
[1645315425560,1.522,2765.1,2764.8,0.00279039]
[1645315425759,0.522,2765.1,2764.8,0.00279039]
[1645315426063,1.42711,2765.1,2764.8,0.00279039]
[1645315426259,2.42711,2765.1,2764.8,0.00279039]
[1645315426464,2.42711,2765.1,2764.6,0.00408541]
[1645315426662,2.42711,2765.1,2764.8,0.00279039]
[1645315427712,2.42711,2765.1,2764.5,0.00408541]
[1645315427909,2.42711,2765.1,2764.8,0.00279039]
[1645315428711,2.42711,2765.1,2764.5,0.00408541]
[1645315429011,2.42711,2765.1,2764.8,0.00280206]
[1645315430011,2.42711,2765.1,2764.5,0.00408541]
[1645315430211,2.42711,2765.1,2764.8,0.00281695]
[1645315431212,2.37711,2765.1,2764.5,0.00408541]
[1645315431463,2.37711,2765.1,2764.8,0.00281695]
[1645315431865,1.37711,2765.1,2764.8,0.00281695]
[1645315432466,1.37711,2765.1,2764.5,0.00408541]
[1645315432663,1.37711,2765.1,2764.8,0.00281566]
[1645315433666,1.81014,2765.0,2764.5,0.00408541]
[1645315433866,2.81014,2765.0,2764.8,0.00281426]
[1645315434865,2.81014,2765.0,2764.5,0.00408541]
[1645315435136,2.81014,2765.0,2764.8,0.00281429]
[1645315435630,1.81014,2765.0,2764.8,0.00281429]
[1645315436030,1.81014,2765.0,2764.5,0.00408541]
[1645315436229,1.81014,2765.0,2764.8,0.00281443]
[1645315437128,1.81014,2765.0,2764.5,0.00408541]
[1645315437531,1.81014,2765.0,2764.8,0.00281456]
[1645315438233,2.81014,2765.0,2764.8,0.00281456]
[1645315438435,2.81014,2765.0,2764.5,0.00408541]
[1645315438632,2.81014,2765.0,2764.8,0.00281456]
[1645315439061,1.0,2765.0,2764.8,0.00281456]
[1645315439459,1.67711,2765.1,2764.8,0.00281456]
[1645315439662,1.97711,2765.1,2764.5,0.00408541]
[1645315439859,1.97711,2765.1,2764.8,0.00281455]
[1645315439860,1.37711,2765.1,2764.8,0.00281455]
[1645315440059,0.90511,2765.1,2764.8,0.00281455]
[1645315440862,0.90511,2765.1,2764.5,0.00408541]
[1645315441062,0.90511,2765.1,2764.8,0.00281451]
[1645315442062,0.90511,2765.1,2764.5,0.00408541]
[1645315442262,1.0,2765.3,2764.8,0.00281451]
[1645315442468,1.1586,2765.6,2764.8,0.00281451]
[1645315442717,1.9048752,2765.8,2764.8,0.00281451]
[1645315442718,1.80962,2765.8,2764.8,0.00281451]
[1645315443113,1.80962,2765.8,2764.8,0.00689992]
[1645315443412,1.80962,2765.8,2765.2,0.00281431]
[1645315443614,1.04013545,2765.7,2765.2,0.00281431]
[1645315444015,0.90479,2765.6,2765.2,0.00281431]
[1645315444415,0.90479,2765.6,2764.8,0.00408541]
[1645315444619,0.90479,2765.6,2765.3,0.00281426]
[1645315445620,0.90479,2765.6,2764.5,3.20502809]
[1645315445822,0.90479,2765.6,2765.3,0.00281423]
[1645315446022,0.9047,2765.9,2765.3,0.00281423]
[1645315446866,0.9047,2765.9,2765.2,1.17583853]
[1645315447066,0.9047,2765.9,2765.5,0.00281414]
[1645315447870,1.0,2766.0,2765.5,0.00281414]
[1645315448074,0.53169981,2766.1,2765.2,1.17583853]
[1645315448471,0.53169981,2766.1,2765.6,0.00281407]
[1645315449269,1.3766929,2766.1,2765.2,1.17583853]
[1645315449472,2.2813329,2766.1,2765.6,0.00281414]
[1645315449675,2.5813329,2766.1,2765.6,0.00281414]
[1645315449869,1.0,2766.0,2765.6,0.00281414]
[1645315450311,1.0,2766.0,2765.0,0.18478541]
[1645315450719,1.0,2766.0,2765.6,0.00281412]
[1645315450912,2.80952,2766.0,2765.6,0.00281412]
[1645315451515,1.80952,2766.0,2765.6,0.00281412]
[1645315451716,1.80952,2766.0,2765.2,0.87678781]
[1645315451919,2.40952,2766.0,2765.6,0.00281411]
[1645315452116,2.80952,2766.0,2765.6,0.00281411]
[1645315452322,2.80952,2766.0,2765.6,0.00127539]
[1645315452520,1.80952,2766.0,2765.6,0.00127539]
[1645315452920,2.80952,2766.0,2765.1,1.53656727]
[1645315453123,2.80952,2766.0,2765.0,0.00408541]
[1645315453623,0.522,2765.9,2765.0,0.00408541]
[1645315453879,0.90482,2765.7,2765.0,0.00408541]
[1645315455272,0.90482,2765.7,2765.1,1.13291399]
[1645315455471,0.522,2765.9,2765.2,0.00302436]
[1645315455671,1.80952,2766.0,2765.2,0.00302436]
[1645315455874,2.80952,2766.0,2765.2,1.53958976]
[1645315456071,2.10952,2766.0,2765.2,0.00302436]
[1645315456270,2.80952,2766.0,2765.2,0.00302436]
[1645315456574,0.90471,2765.8,2765.2,1.5365732]
[1645315456771,0.90471,2765.8,2765.5,0.0030242]
[1645315457725,0.90471,2765.8,2765.3,0.99479781]
[1645315457925,0.90471,2765.8,2765.5,0.00302457]